bitfinex-derivatives/quotes_ETHF0:USTF0_20250824
["timestamp","ask_amount","ask_price","bid_price","bid_amount"]
[1756050254061,20.51498,4818.3,4818.2,1.3238]
[1756050254670,1.17798,4818.3,4818.2,1.3238]
[1756050254968,20.51398,4818.3,4818.2,1.3238]
[1756050255362,20.51398,4818.3,4818.2,0.6055]
[1756050255965,20.51398,4818.3,4818.2,1.1017]
[1756050256175,0.71818,4818.3,4818.2,1.3238]
[1756050256473,20.51298,4818.3,4818.2,0.6055]
[1756050256661,20.51298,4818.3,4818.2,0.4526]
[1756050256858,20.51298,4818.3,4818.2,0.2282]
[1756050258564,0.41521,4818.0,4817.9,0.5673]
[1756050258773,20.51101,4818.0,4817.9,1.3238]
[1756050260473,20.28131,4818.0,4817.9,1.3238]
[1756050260866,20.51101,4818.0,4817.9,1.1017]
[1756050261067,20.51101,4818.0,4817.9,0.6055]
[1756050261873,0.303,4817.6,4817.5,0.2282]
[1756050262070,19.7908,4817.6,4817.2,0.7894]
[1756050262271,0.7628,4817.3,4817.2,1.3238]
[1756050262574,20.50807,4817.3,4817.2,0.7588]
[1756050262776,20.50807,4817.3,4817.2,0.6055]
[1756050263375,0.71829,4817.0,4816.9,0.7894]
[1756050263573,0.71829,4817.0,4816.9,0.4526]
[1756050263574,20.50709,4817.0,4816.9,0.4526]
[1756050263975,0.148,4816.7,4816.6,0.7955]
[1756050264275,20.50712,4816.7,4816.6,0.4526]
[1756050264872,0.7628,4816.4,4816.3,0.7202]
[1756050265080,20.0908,4816.4,4816.3,0.9484]
[1756050265373,20.0908,4816.4,4816.3,0.6055]
[1756050266778,20.0908,4816.4,4816.3,0.9484]
[1756050267577,20.0908,4816.4,4816.3,0.6055]
[1756050268073,0.303,4816.2,4816.1,0.41537]
[1756050268273,0.7628,4816.2,4816.1,0.64357]
[1756050268574,0.7628,4816.2,4816.1,1.02087]
[1756050268881,0.5331,4816.2,4816.1,1.73917]
[1756050269480,0.7628,4816.2,4816.1,1.73917]
[1756050271081,0.7628,4816.2,4816.1,1.3238]
[1756050271380,0.7628,4816.2,4816.1,1.1017]
[1756050271583,0.7628,4816.2,4816.1,0.4526]
[1756050271877,0.303,4815.9,4815.8,2.05410343]
[1756050272082,0.5327,4815.9,4815.8,0.7955]
[1756050272278,0.7628,4815.9,4815.8,0.9484]
[1756050272479,0.7628,4815.9,4815.8,1.1017]
[1756050272783,0.7628,4815.9,4815.8,1.3238]
[1756050273983,0.5331,4815.6,4815.5,1.73922]
[1756050274179,0.5331,4815.6,4815.5,1.3238]
[1756050275487,0.7628,4815.6,4815.5,1.3238]
[1756050275989,0.7628,4815.6,4815.5,1.1017]
[1756050276182,0.5331,4815.1,4815.0,1.0956]
[1756050276382,0.148,4815.1,4815.0,1.0956]
[1756050276780,0.79032,4815.5,4815.4,0.394]
[1756050276982,0.94462,4815.5,4815.4,1.3304]
[1756050277984,1.16152,4815.5,4815.4,1.3304]
[1756050280189,0.94462,4815.5,4815.4,1.3304]
[1756050281596,0.1543,4815.7,4815.6,0.95801]
[1756050281798,0.1543,4815.7,4815.6,0.5426]
[1756050282294,0.1543,4815.7,4815.6,1.3304]
[1756050282890,0.6443,4815.8,4815.6,1.3304]
[1756050283091,0.6443,4815.8,4815.7,1.1818]
[1756050283294,0.6443,4815.8,4815.7,1.3304]
[1756050284390,0.4154,4815.8,4815.7,1.3304]
[1756050284698,0.41538,4816.0,4815.9,1.3304]
[1756050285093,0.64426,4816.2,4816.1,1.3304]
[1756050285294,0.41536,4816.2,4816.1,1.3304]
[1756050286494,0.71445,4816.3,4816.2,1.74576]
[1756050286696,0.71445,4816.3,4816.2,1.3304]
[1756050286896,0.94335,4816.3,4816.2,1.3304]
[1756050287997,1.16025,4816.3,4816.2,1.3304]
[1756050290594,0.94335,4816.3,4816.2,1.3304]
[1756050291501,1.16025,4816.3,4816.2,1.3304]
[1756050291896,5.94335,4816.3,4816.2,1.3304]
[1756050292304,5.0,4816.3,4816.2,1.3304]
[1756050294795,5.3832,4816.3,4816.2,1.3304]
[1756050294999,5.528,4816.3,4816.2,1.3304]
[1756050297507,5.7449,4816.3,4816.2,1.3304]
[1756050299704,5.4458,4816.3,4815.8,1.00319]
[1756050299904,0.71448,4816.0,4815.9,0.7462]
[1756050300204,0.7449,4816.0,4815.9,1.3304]
[1756050300399,19.311,4816.1,4816.0,1.74578]
[1756050301011,5.2991,4816.3,4816.2,0.95796]
[1756050301206,5.2991,4816.3,4816.2,0.5426]
[1756050301505,5.516,4816.3,4816.2,1.1151]
[1756050301708,5.516,4816.3,4815.8,0.41539]
[1756050301709,0.1543,4816.0,4815.9,0.4559]
[1756050301917,1.1603,4815.7,4815.6,0.6143]
[1756050302105,20.4683,4815.7,4815.6,0.6143]
[1756050302306,0.528,4815.4,4815.3,0.2356]
[1756050302613,1.16034,4815.3,4815.2,0.2203]
[1756050303112,20.46734,4815.3,4815.2,0.2203]
[1756050305111,20.46734,4815.3,4815.0,0.3522]
[1756050305112,0.71459,4814.7,4814.6,2.37780343]
[1756050305410,0.71459,4814.7,4814.6,1.3304]
[1756050305606,0.7449,4814.7,4814.6,1.3304]
[1756050305807,0.528,4814.7,4814.6,1.3304]
[1756050306911,0.7426,4814.7,4814.6,1.3304]
[1756050308814,0.1441,4815.0,4814.9,1.3209]
[1756050309009,19.305,4815.1,4814.9,3.13374455]
[1756050309320,19.303,4815.5,4815.4,1.3209]
[1756050309519,0.71721,4815.6,4815.5,1.1024]
[1756050309719,1.16031,4815.6,4815.5,1.3209]
[1756050310018,1.16031,4815.6,4814.5,0.0207]
[1756050310019,1.01628,4814.9,4814.8,1.3209]
[1756050310207,1.16038,4814.9,4814.8,1.3209]
[1756050310406,0.94578,4814.9,4814.8,1.3209]
[1756050312520,1.16042,4814.3,4814.2,0.7451]
[1756050312715,1.16042,4814.3,4814.2,1.0927]
[1756050312921,1.16042,4814.3,4814.2,1.3209]
[1756050313321,1.16042,4814.3,4814.2,1.49013059]
[1756050314020,0.4155,4814.6,4814.3,0.41552]
[1756050314226,0.4155,4814.6,4814.2,1.49013059]
[1756050314227,0.2285,4814.9,4814.8,0.1535]
[1756050314436,0.3726,4814.9,4814.8,1.3209]
[1756050314933,0.5303,4814.3,4814.2,1.49013059]
[1756050315620,0.5303,4814.3,4814.2,1.3209]
[1756050316730,0.7449,4814.3,4814.2,1.3209]
[1756050319329,0.3018,4813.9,4813.8,1.3209]
[1756050319526,0.7449,4813.9,4813.8,1.3209]
[1756050319727,1.16046,4813.9,4813.8,1.3209]
[1756050319938,1.16046,4813.9,4813.8,1.0927]
[1756050320130,1.16046,4813.9,4813.8,1.3209]
[1756050320432,0.41558,4813.6,4813.5,0.2282]
[1756050320635,1.16048,4813.6,4813.5,1.3209]
[1756050322636,1.16048,4813.6,4813.5,0.5916]
[1756050322838,1.16051,4813.3,4813.2,0.9392]
[1756050323032,1.16051,4813.3,4813.2,0.4362]
[1756050323532,0.71746,4812.7,4812.6,1.4264]
[1756050323838,0.5303,4812.7,4812.6,2.2199]
[1756050324231,0.7449,4812.7,4812.6,2.2199]
[1756050324633,0.7449,4812.7,4812.6,1.9917]
[1756050324837,0.5303,4812.7,4812.6,2.2199]
[1756050325244,0.7449,4812.7,4812.6,2.2199]
[1756050325436,0.7449,4812.7,4812.6,0.899]
[1756050325636,0.7449,4812.7,4812.6,1.4906]
[1756050325834,0.7449,4812.7,4812.6,1.8382]
[1756050326137,0.7449,4812.7,4812.6,2.2199]
[1756050326341,0.7449,4812.7,4812.6,0.899]
[1756050327729,4.7449,4812.7,4812.6,0.899]
[1756050327931,4.7449,4812.7,4812.6,0.6096]
[1756050328136,4.7449,4812.7,4812.6,0.3196]
[1756050329738,4.7449,4812.7,4811.7,0.16464384]
[1756050329739,0.2158,4811.9,4811.8,0.2177]
[1756050329939,19.93153,4811.9,4811.8,1.3209]
[1756050330532,19.93153,4811.9,4811.8,0.5758]
[1756050330741,1.72449,4811.3,4811.2,0.5274]
[1756050330937,19.8175,4811.3,4811.2,0.5274]
[1756050331243,20.046,4811.3,4811.2,0.5274]
[1756050331437,20.3931,4811.3,4811.2,0.5274]
[1756050332142,20.6077,4811.3,4811.2,0.5274]
[1756050332843,20.6077,4811.3,4811.2,1.3209]
[1756050333039,1.13726,4811.6,4811.5,0.3739]
[1756050333240,19.71674,4811.8,4811.6,0.7935]
[1756050333444,19.71674,4811.8,4811.7,1.3209]
[1756050333837,19.301,4811.8,4811.7,1.3209]
[1756050335043,20.46374,4811.8,4811.7,1.3209]
[1756050335242,1.50984,4811.8,4811.7,1.3209]
[1756050335545,20.59611,4812.2,4812.1,0.5274]
[1756050335738,20.24801,4812.2,4812.1,1.3209]
[1756050336139,21.02641,4812.2,4812.1,1.3209]
[1756050338046,20.3961,4812.2,4812.1,1.3209]
[1756050338344,20.3961,4812.2,4811.5,1.37667455]
[1756050338345,1.17556,4811.7,4811.6,0.5358]
[1756050338547,1.0854,4811.7,4811.6,1.3224]
[1756050339344,0.5593,4812.1,4811.6,0.5358]
[1756050339540,0.5261,4811.8,4811.7,1.3224]
[1756050339744,1.0854,4811.8,4811.7,1.3224]
[1756050340541,1.303,4811.8,4811.7,0.7604]
[1756050340746,0.1523,4811.8,4811.7,1.3224]
[1756050340946,0.5432,4812.2,4811.4,1.37667455]
[1756050340947,0.72033,4812.0,4811.9,1.3224]
[1756050341241,20.80313,4812.0,4811.9,1.3224]
[1756050341446,0.3738,4812.3,4812.2,0.5358]
[1756050341646,0.3738,4812.3,4812.2,1.3224]
[1756050341647,20.5694,4812.3,4812.2,1.3224]
[1756050341846,20.8031,4812.3,4812.2,1.3224]
[1756050342239,1.5011,4812.3,4812.2,1.3224]
[1756050342444,21.0197,4812.3,4812.2,1.3224]
[1756050342640,21.0197,4812.3,4812.2,0.1571]
[1756050342842,1.71872,4812.0,4811.9,0.1571]
[1756050343045,1.71872,4812.0,4811.9,1.3224]
[1756050343244,1.303,4812.0,4811.9,1.3224]
[1756050343440,1.0854,4812.0,4811.9,1.3224]
[1756050343943,1.0854,4812.0,4811.8,0.41574]
[1756050343944,0.1523,4812.4,4812.3,0.57279]
[1756050344250,20.3864,4812.4,4812.3,1.3224]
[1756050345348,20.604,4812.4,4812.3,1.3224]
[1756050346748,20.604,4812.4,4812.3,0.2156]
[1756050346952,1.303,4811.7,4811.6,1.3224]
[1756050347547,1.0854,4811.7,4811.6,1.73816]
[1756050348057,1.303,4811.7,4811.6,1.3224]
[1756050348256,1.303,4811.7,4811.6,0.976]
[1756050348555,0.5261,4811.4,4811.3,1.0978]
[1756050348858,1.303,4811.4,4811.3,1.0978]
[1756050349051,1.303,4811.4,4811.3,0.8822]
[1756050349249,0.5261,4811.2,4811.1,0.2246]
[1756050349449,1.303,4811.2,4811.1,0.2246]
[1756050349955,1.303,4811.2,4811.1,1.3224]
[1756050350855,1.303,4811.2,4811.1,0.7604]
[1756050351058,1.303,4811.0,4810.9,0.7604]
[1756050351756,1.303,4811.0,4810.9,1.3224]
[1756050352753,19.6026,4811.2,4811.1,0.3787]
[1756050353057,19.6026,4811.2,4811.1,1.3224]
[1756050353256,20.3834,4811.2,4811.1,1.3224]
[1756050354051,20.601,4811.2,4811.1,1.3224]
[1756050355652,1.303,4811.2,4811.1,1.3224]
[1756050356057,1.303,4811.2,4811.1,1.1068]
[1756050356554,1.303,4811.0,4810.9,1.1719]
[1756050356761,1.303,4811.0,4810.9,1.50186351]
[1756050357146,0.5261,4811.0,4810.9,1.50186351]
[1756050357352,0.3046,4811.0,4810.9,1.50186351]
[1756050358257,1.0854,4811.3,4811.2,0.5358]
[1756050358453,20.3834,4811.3,4811.2,1.73819]
[1756050359046,1.0854,4811.3,4811.2,1.73819]
[1756050359247,20.6,4811.6,4811.5,0.1571]
[1756050359447,0.5261,4811.3,4811.2,1.39179]
[1756050359756,1.303,4811.3,4811.2,1.73819]
[1756050360349,1.303,4811.3,4811.2,1.3224]
[1756050360747,1.303,4811.3,4811.2,0.7604]
[1756050361256,0.1523,4811.0,4810.9,0.4969]
[1756050361560,1.303,4811.0,4810.9,1.50186377]
[1756050362856,1.303,4811.0,4810.9,0.17946377]
[1756050363059,1.303,4811.0,4810.9,0.56116377]
[1756050363360,1.303,4811.0,4810.9,1.28626377]
[1756050363660,1.303,4811.0,4810.9,1.50186377]
[1756050366755,0.7565,4811.4,4811.3,1.3216]
[1756050366950,0.5295,4811.4,4811.3,1.73738]
[1756050367159,1.1044,4811.4,4811.3,1.73738]
[1756050367560,1.1044,4811.4,4810.9,1.37667455]
[1756050367561,0.5381,4811.7,4811.6,0.5189]
[1756050367862,1.3262,4811.7,4811.6,1.3216]
[1756050368961,0.5749,4811.7,4811.6,1.3216]
[1756050369156,0.5663,4812.1,4812.0,1.3216]
[1756050369352,1.1044,4812.1,4812.0,1.3216]
[1756050371165,1.1044,4811.6,4811.5,1.3216]
[1756050371358,0.5663,4812.1,4812.0,0.15]
[1756050371567,1.3262,4812.4,4812.3,1.0917]
[1756050371759,1.3262,4812.4,4812.3,1.3216]
[1756050372266,1.74189,4812.4,4812.3,1.3216]
[1756050373160,1.1044,4812.4,4812.3,1.3216]
[1756050373865,1.3262,4812.4,4812.3,1.3216]
[1756050374066,1.74196,4811.6,4811.5,0.29]
[1756050374365,22.40963455,4811.6,4811.5,0.29]
[1756050374555,3.11863455,4811.6,4811.5,0.29]
[1756050374754,1.74196,4811.6,4811.5,0.29]
[1756050374958,21.03196,4811.6,4811.5,0.29]
[1756050375364,0.5381,4810.4,4810.3,2.19113338]
[1756050375665,1.2543,4810.4,4810.3,1.3216]
[1756050375867,1.0325,4810.4,4810.3,1.3216]
[1756050376065,1.2543,4810.4,4810.3,1.3216]
[1756050378477,1.2543,4810.1,4810.0,1.3216]
[1756050378671,1.0325,4810.1,4810.0,1.3216]
[1756050378870,0.5295,4810.1,4810.0,1.50068492]
[1756050379069,0.3111,4810.1,4810.0,1.50068492]
[1756050379474,0.3111,4810.1,4810.0,1.3216]
[1756050379671,0.1541,4810.1,4810.0,1.3216]
[1756050379871,19.288,4810.4,4810.3,1.0917]
[1756050380067,19.288,4810.4,4810.3,1.3216]
[1756050380267,19.70386,4810.4,4810.3,1.3216]
[1756050380668,20.01496,4810.4,4810.3,1.3216]
[1756050380873,19.5991,4810.4,4810.3,1.3216]
[1756050381071,20.3205,4810.4,4810.3,1.3216]
[1756050381868,0.3111,4810.4,4810.3,1.3216]
[1756050382268,0.3111,4810.9,4810.8,0.56582]
[1756050382474,0.276,4811.2,4811.0,0.93471]
[1756050382475,0.3111,4811.1,4811.0,0.93471]
[1756050382668,19.5991,4811.4,4811.3,0.144]
[1756050382875,0.4944,4811.6,4811.3,0.144]
[1756050382876,0.4944,4811.6,4811.3,0.5189]
[1756050383069,0.3111,4811.6,4811.5,1.3216]
[1756050383367,19.6001,4811.6,4811.5,1.3216]
[1756050383573,0.3111,4811.6,4811.5,1.3216]
[1756050383769,0.3111,4811.9,4811.8,1.3216]
[1756050383974,0.157,4811.9,4811.8,1.3216]
[1756050384162,0.3111,4811.9,4811.8,1.3216]
[1756050384363,1.2543,4811.9,4811.8,1.3216]
[1756050386170,20.5423,4811.9,4811.8,1.3216]
[1756050387073,20.5413,4811.9,4811.8,1.3216]
[1756050388769,1.2543,4811.9,4811.8,1.3216]
[1756050388969,20.5403,4811.9,4811.8,1.3216]
[1756050389673,1.44827,4811.5,4811.4,1.3216]
[1756050389878,1.67007,4811.5,4811.4,1.3216]
[1756050390578,1.2543,4811.5,4811.4,1.3216]
[1756050391570,1.0325,4811.5,4811.4,1.3216]
[1756050391969,0.5295,4811.5,4811.4,1.3216]
[1756050392166,0.95389,4811.3,4811.2,1.0917]
[1756050392371,0.5295,4811.3,4811.2,1.3216]
[1756050392573,0.41576,4811.6,4811.2,1.3216]
[1756050392770,19.283,4811.5,4811.4,1.3216]
[1756050393075,0.41575,4811.7,4811.4,1.73737]
[1756050393376,0.5295,4811.6,4811.5,1.3216]
[1756050394474,1.66999,4811.2,4811.1,0.5189]
[1756050394678,0.5381,4810.6,4810.5,1.62555901]
[1756050394869,0.5381,4810.4,4810.2,1.48155901]
[1756050395073,0.41588,4810.3,4810.0,2.05925901]
[1756050395268,1.2542,4810.1,4810.0,2.80315901]
[1756050395473,1.2542,4810.1,4810.0,2.98276371]
[1756050395673,1.2542,4810.1,4810.0,1.5012047]
[1756050395873,1.2542,4810.1,4810.0,1.3216]
[1756050397069,1.2542,4810.1,4810.0,1.0966]
[1756050397274,1.2542,4810.1,4810.0,1.3056]
[1756050398575,0.41589,4810.0,4809.9,0.16559526]
[1756050398773,1.67169,4810.0,4809.9,0.3675]
[1756050398971,1.67169,4810.0,4809.9,1.3042]
[1756050399569,1.67169,4810.0,4809.9,1.078]
[1756050400177,1.67169,4810.0,4809.9,1.3042]
[1756050400385,0.79764,4809.5,4809.4,0.512]
[1756050400581,1.2558,4809.5,4809.4,1.3042]
[1756050401076,1.2558,4809.5,4809.4,0.90516056]
[1756050401282,1.2558,4809.5,4809.4,0.76066056]
[1756050401479,1.2558,4809.5,4809.4,1.46916056]
[1756050402083,0.3062,4809.5,4809.4,1.46916056]
[1756050402581,1.0385,4809.5,4809.4,1.46916056]
[1756050402984,1.0485,4809.5,4809.4,1.46916056]
[1756050403175,1.2658,4809.5,4809.4,1.46916056]
[1756050403374,1.2658,4809.5,4809.4,1.09846056]
[1756050403577,1.2658,4809.5,4809.4,1.24296056]
[1756050403776,1.2658,4809.5,4809.4,1.46916056]
[1756050405886,1.2658,4809.5,4809.4,1.078]
[1756050406486,1.26124087,4809.5,4809.4,1.3042]
[1756050406983,1.26124087,4809.5,4809.4,0.77536616]
[1756050407185,1.26124087,4809.5,4809.4,0.17966616]
[1756050407384,1.25124087,4809.5,4809.4,0.17966616]
[1756050407687,2.62791542,4809.5,4809.4,0.17966616]
[1756050408082,2.62791542,4809.5,4808.8,1.7202]
[1756050408083,1.2558,4808.9,4808.8,1.7202]
[1756050408386,1.37667455,4809.5,4809.2,1.72016]
[1756050408387,0.5394,4809.3,4809.2,1.72016]
[1756050408685,0.5394,4809.3,4809.2,1.48391762]
[1756050409079,1.0385,4809.3,4809.2,1.48391762]
[1756050409287,1.0385,4809.3,4809.2,1.4838103]
[1756050409494,0.3919,4809.6,4809.5,0.3668]
[1756050409682,0.8155,4809.6,4809.5,1.4838103]
[1756050409881,1.0385,4809.6,4809.5,1.48379901]
[1756050410391,0.5394,4809.6,4809.5,1.48379901]
[1756050411187,1.0385,4810.0,4809.9,1.3042]
[1756050412482,1.2558,4810.0,4809.9,1.3042]
[1756050412687,1.0385,4810.0,4809.9,1.3042]
[1756050413191,1.2558,4810.0,4809.9,1.3042]
[1756050413391,1.2558,4810.0,4809.9,1.48374498]
[1756050414984,1.2558,4810.0,4809.9,1.25754498]
[1756050415184,1.2558,4810.0,4809.9,1.48374498]
[1756050416986,1.2558,4810.0,4809.9,1.3042]
[1756050417185,20.5348,4810.0,4809.9,1.3042]
[1756050417492,20.5348,4810.0,4809.9,0.5957]
[1756050417886,20.5348,4810.0,4809.9,0.9335]
[1756050418192,20.5348,4810.0,4809.9,1.3042]
[1756050418487,20.5348,4810.0,4809.4,0.512]
[1756050418488,0.94514,4809.5,4809.4,0.512]
[1756050418692,0.94514,4809.5,4809.4,1.3042]
[1756050419094,1.17834,4809.5,4809.4,1.3042]
[1756050419489,1.45444,4809.5,4809.4,1.3042]
[1756050419696,1.67174,4809.5,4809.4,1.3042]
[1756050419898,1.45444,4809.5,4809.4,1.3042]
[1756050420496,1.0385,4809.5,4809.4,1.3042]
[1756050421390,1.37667455,4810.0,4809.4,1.3042]
[1756050421391,0.1475,4810.5,4810.4,0.56106]
[1756050421592,0.1475,4810.5,4810.4,1.72006]
[1756050421891,0.2761,4811.2,4811.0,0.41581]
[1756050422091,0.5823,4811.6,4811.5,1.3042]
[1756050422290,0.1587,4811.3,4811.2,0.4823]
[1756050422486,0.41587,4810.3,4810.2,0.3714]
[1756050422691,3.04834455,4810.3,4810.2,0.92002601]
[1756050422902,0.41589,4810.1,4809.8,0.564]
[1756050423098,1.4385,4809.9,4809.8,1.3042]
[1756050423296,0.3062,4810.2,4810.1,0.70558]
[1756050423496,0.3062,4810.2,4810.1,1.89999428]
[1756050423497,0.1475,4810.2,4810.1,1.89999428]
[1756050423696,0.2332,4810.4,4810.1,1.89999428]
[1756050423899,0.8155,4810.4,4810.3,0.512]
[1756050424093,1.0385,4810.4,4810.3,1.3042]
[1756050424293,1.2558,4810.4,4810.3,1.48433451]
[1756050424597,1.2558,4810.4,4810.3,1.3042]
[1756050424798,0.3062,4810.4,4810.3,1.90020781]
[1756050424994,0.5394,4810.7,4810.6,1.3042]
[1756050425195,19.275,4810.9,4810.8,0.512]
[1756050425400,19.5812,4810.9,4810.8,1.3042]
[1756050425595,20.5308,4810.9,4810.8,1.3042]
[1756050425903,1.2558,4810.9,4810.8,1.3042]
[1756050426198,19.5802,4811.1,4811.0,1.3042]
[1756050426397,20.9456,4811.1,4811.0,0.3675]
[1756050427398,0.96003,4810.8,4810.7,0.74]
[1756050427599,1.69563,4810.8,4810.7,1.49001253]
[1756050428005,1.69563,4810.8,4810.7,1.49002213]
[1756050428403,1.2798,4810.8,4810.7,1.49002213]
[1756050428803,1.2798,4810.8,4810.7,1.3099]
[1756050429107,1.2798,4810.8,4810.7,1.49001689]
[1756050429808,1.0519,4810.8,4810.7,1.49001689]
[1756050431707,1.0519,4810.8,4810.7,0.92011689]
[1756050432010,1.69566,4810.4,4810.3,1.314]
[1756050432209,20.96666,4810.4,4810.3,1.49408993]
[1756050434612,20.96566,4810.4,4810.3,1.49408993]
[1756050435006,1.6957,4809.9,4809.7,0.222]
[1756050435207,1.6957,4809.9,4809.8,0.18010959]
[1756050436010,5.6957,4809.9,4809.8,0.18010959]
[1756050436206,5.6957,4809.9,4808.9,1.092]
[1756050436207,1.2798,4809.0,4808.9,1.092]
[1756050436407,1.2798,4809.0,4808.9,1.27216493]
[1756050436804,1.31034,4809.5,4809.4,0.7441]
[1756050437015,20.73684,4809.5,4809.4,1.49416493]
[1756050437209,20.96474,4809.5,4809.4,1.49416493]
[1756050437918,20.96474,4809.5,4809.4,1.314]
[1756050438115,20.5488,4809.5,4809.4,1.49419409]
[1756050438710,1.2798,4809.5,4809.4,1.49419409]
[1756050439015,20.5488,4809.5,4809.4,1.49419409]
[1756050439212,1.0519,4809.5,4809.4,1.49419409]
[1756050439418,20.73584,4809.5,4809.4,1.49419409]
[1756050439619,20.96374,4809.5,4809.4,1.49419409]
[1756050439917,20.5478,4809.5,4809.4,1.49419409]
[1756050440718,20.3199,4809.5,4809.4,1.49419409]
[1756050440918,1.0519,4809.5,4809.4,1.49419409]
[1756050441614,0.308,4809.8,4809.7,1.314]
[1756050441817,20.0847,4809.8,4809.7,1.49419409]
[1756050442017,20.5488,4809.8,4809.7,1.49419409]
[1756050442219,20.5488,4809.8,4809.7,0.18019409]
[1756050442520,20.5488,4809.8,4809.2,0.7919]
[1756050442521,0.5442,4809.3,4809.2,0.222]
[1756050442722,1.2798,4809.3,4809.2,0.18020438]
[1756050443222,0.8204,4808.7,4808.6,1.0959]
[1756050443517,1.2798,4808.7,4808.6,1.49426259]
[1756050448114,1.2798,4808.7,4808.6,1.4946299]
[1756050448525,1.0519,4808.7,4808.6,1.4946299]
[1756050449019,1.0519,4808.7,4808.6,1.49460684]
[1756050449220,0.5395,4808.7,4808.6,1.49460684]
[1756050449816,0.5041,4809.0,4808.6,1.49460684]
[1756050450017,0.7721,4809.0,4808.9,0.7441]
[1756050450212,0.7721,4809.0,4808.9,1.0959]
[1756050450716,1.2798,4809.0,4808.9,0.9473]
[1756050450921,1.2798,4809.0,4808.9,1.314]
[1756050452826,0.9716,4809.6,4809.5,0.7253]
[1756050453025,20.5476,4809.6,4809.5,1.314]
[1756050453217,1.2796,4809.6,4809.5,1.314]
[1756050453617,20.0427,4809.6,4809.5,1.314]
[1756050453925,0.5395,4809.6,4809.5,1.314]
[1756050454315,0.7757,4809.6,4809.5,1.314]
[1756050454513,1.2796,4809.6,4809.5,1.314]
[1756050454718,1.2796,4809.6,4809.5,0.222]
[1756050455227,1.2796,4809.6,4809.5,0.5955]
[1756050455428,1.2796,4809.6,4809.5,1.314]
[1756050455624,1.2796,4809.6,4211.0,0.00448064]
[1756050455625,1.2796,4809.1,4809.0,0.9622]
[1756050455822,1.2796,4809.1,4809.0,1.14266954]
[1756050456022,1.2796,4809.1,4809.0,1.49446954]
[1756050456928,1.2796,4809.1,4809.0,1.27636954]
[1756050457128,1.2796,4809.1,4809.0,1.51136954]
[1756050457928,1.2796,4809.1,4809.0,1.51145929]
[1756050458136,1.2796,4809.1,4809.0,1.51145892]
[1756050458929,1.2796,4809.1,4809.0,0.55945892]
[1756050459236,1.2487,4808.7,4808.6,1.0925]
[1756050459534,1.2487,4808.7,4808.6,1.50815785]
[1756050460230,1.2487,4808.7,4808.6,1.50811184]
[1756050462536,2.62995106,4808.7,4808.6,0.77421184]
[1756050463037,2.62995106,4808.7,4808.6,1.27311184]
[1756050463237,2.62995106,4808.7,4808.6,0.18061184]
[1756050463536,2.62995106,4808.7,4808.6,0.77421184]
[1756050463737,2.62995106,4808.7,4808.6,1.12341184]
[1756050465135,21.89295106,4808.7,4808.6,0.18061184]
[1756050465536,0.5344,4808.0,4807.6,0.8759]
[1756050465732,1.2487,4807.8,4807.7,0.18094588]
[1756050465938,1.2487,4807.8,4807.7,0.82183588]
[1756050466335,1.2487,4807.8,4807.7,0.18094588]
[1756050466635,1.2487,4807.8,4807.7,1.50844588]
[1756050467237,1.2487,4807.8,4807.7,0.54974588]
[1756050467439,1.2487,4807.8,4807.7,0.18094588]
[1756050468142,1.66479,4807.8,4807.7,0.18090702]
[1756050468339,0.95049,4807.8,4807.7,0.18090702]
[1756050468542,0.5344,4807.6,4807.5,1.74361]
[1756050468739,0.5344,4807.6,4807.5,1.3275]
[1756050468951,1.2487,4807.6,4807.5,1.3275]
[1756050469750,0.4908,4807.5,4806.8,0.574]
[1756050470046,0.5344,4806.6,4806.5,1.1027]
[1756050470350,1.2487,4806.6,4806.5,1.28350901]
[1756050470849,0.5245,4806.6,4806.5,1.50830901]
[1756050471445,0.5245,4806.6,4806.5,1.50816399]
[1756050471959,0.8002,4806.6,4806.5,1.50816399]
[1756050473445,0.3094,4806.6,4806.5,1.50816399]
[1756050473647,0.5851,4807.2,4807.1,0.5185]
[1756050473845,0.8101,4807.2,4807.1,1.3275]
[1756050474045,1.0336,4807.2,4807.1,1.3275]
[1756050474247,1.2487,4807.2,4807.1,1.3275]
[1756050475953,2.62995106,4807.2,4807.1,1.3275]
[1756050476147,2.47155106,4807.2,4806.2,0.1708137]
[1756050476354,1.38125106,4806.9,4806.8,0.7288]
[1756050476550,1.38125106,4806.9,4806.7,0.41618]
[1756050476551,0.3094,4807.2,4807.1,1.74364]
[1756050476752,1.2487,4807.2,4807.1,0.7433]
[1756050476950,1.2487,4807.2,4807.1,1.0925]
[1756050477149,1.2487,4807.2,4807.1,1.3275]
[1756050477852,1.0252,4807.2,4807.1,1.3275]
[1756050478045,1.2487,4807.2,4807.1,0.7433]
[1756050478249,0.95056,4806.9,4806.8,0.718]
[1756050478544,3.04611106,4806.9,4806.8,1.0925]
[1756050478749,0.7495,4806.5,4806.4,1.1697]
[1756050478950,0.7495,4806.5,4806.4,1.35010304]
[1756050479151,1.2487,4806.5,4806.4,1.35010304]
[1756050479354,1.2487,4806.5,4806.4,0.75440304]
[1756050479656,1.2487,4806.5,4806.4,0.9428]
[1756050479857,1.2487,4806.5,4806.4,0.5936]
[1756050480049,1.2487,4806.5,4806.4,0.3688]
[1756050480653,1.2487,4806.5,4806.4,1.3275]
[1756050480953,2.62995106,4806.5,4806.4,1.3275]
[1756050481152,1.0252,4806.5,4806.4,1.3275]
[1756050481359,1.2487,4806.5,4806.4,1.3275]
[1756050482661,0.3094,4806.5,4806.4,1.3275]